bitfinex/quotes_ETHUSD_20240820
["timestamp","ask_amount","ask_price","bid_price","bid_amount"]
[1724115090694,3.75992,2659.7,2659.0,2.4732]
[1724115091002,0.375992,2659.6,2659.2,2.2625]
[1724115091375,3.81607505,2659.5,2659.3,0.08615257]
[1724115091611,3.76038,2659.3,2659.2,2.2625]
[1724115092038,3.614,2659.3,2659.2,2.2625]
[1724115092357,3.0,2659.3,2659.2,2.2625]
[1724115092494,3.0,2659.5,2659.2,2.2625]
[1724115092831,1.5699962,2659.4,2659.2,2.2625]
[1724115092994,0.55,2659.4,2659.2,2.2625]
[1724115093191,3.0,2659.5,2659.2,2.2625]
[1724115093696,6.76013,2659.5,2659.2,2.2625]
[1724115093898,3.0,2659.5,2659.2,2.2625]
[1724115094687,0.55,2659.4,2659.2,2.2625]
[1724115094954,4.171039,2659.3,2658.0,2.276]
[1724115095090,3.0,2659.2,2658.0,2.276]
[1724115095418,3.0,2659.2,2657.6,3.064]
[1724115095419,3.0,2659.2,2658.1,2.3626687]
[1724115098607,3.0,2659.5,2658.1,2.3626687]
[1724115099705,3.0,2659.5,2658.3,2.3829]
[1724115100007,0.982399,2659.4,2658.5,2.3829]
[1724115100341,3.0,2659.5,2658.5,2.3829]
[1724115100526,3.0,2659.5,2658.7,2.4995]
[1724115100901,3.0,2659.5,2658.9,2.4995]
[1724115101341,3.0,2659.5,2659.1,2.2771]
[1724115101553,3.6064,2659.5,2659.2,0.08617011]
[1724115102155,7.36652,2659.5,2659.2,0.08617011]
[1724115102501,3.76038,2659.3,2659.2,0.08617011]
[1724115102738,7.31038,2659.3,2659.2,0.08617011]
[1724115102939,7.31038,2659.3,2659.1,2.2771]
[1724115103182,4.281038,2659.2,2659.1,2.2771]
[1724115103345,1.281038,2659.2,2659.1,2.2771]
[1724115103543,0.55,2659.2,2659.1,2.2771]
[1724115103764,0.55,2659.3,2659.1,2.2771]
[1724115104512,2.3224,2660.7,2659.1,2.2771]
[1724115104713,0.58974694,2660.9,2659.3,2.4574]
[1724115104965,0.58974694,2660.9,2659.7,2.4574]
[1724115105124,6.82159,2661.3,2659.9,2.4574]
[1724115105325,6.82159,2661.3,2660.0,2.39797693]
[1724115105553,3.064,2661.3,2660.0,2.48371524]
[1724115105751,6.82157,2661.3,2660.0,2.48371524]
[1724115106050,0.682157,2661.2,2660.0,2.64634845]
[1724115106257,3.064,2661.3,2660.1,2.3069]
[1724115106258,0.05596505,2661.1,2660.1,2.3069]
[1724115106445,0.05596505,2661.1,2660.1,2.39213034]
[1724115106819,3.064,2661.3,2660.1,2.39213034]
[1724115107217,3.064,2661.6,2660.1,2.39213034]
[1724115107422,0.93089501,2661.5,2660.3,2.4944]
[1724115107961,0.93089501,2661.5,2660.5,2.4944]
[1724115108551,3.75714,2661.6,2660.5,2.4944]
[1724115108721,3.75714,2661.6,2660.6,0.08471731]
[1724115109317,3.75714,2661.6,2660.7,2.4896]
[1724115109553,3.0,2661.5,2660.7,2.4896]
[1724115110434,2.52015475,2662.0,2660.7,2.4896]
[1724115110435,3.0,2661.7,2660.7,2.4896]
[1724115110627,3.75686,2661.8,2660.9,2.3786]
[1724115110817,0.25201548,2661.9,2660.9,2.3786]
[1724115111022,0.25201548,2661.9,2661.0,0.08440686]
[1724115111218,0.25201548,2661.9,2661.1,2.3258]
[1724115111418,0.25201548,2661.9,2661.1,2.41016162]
[1724115111828,3.75712,2661.7,2661.1,2.41016162]
[1724115112063,3.74367356,2661.6,2661.1,2.41016162]
[1724115113939,0.74367356,2661.6,2661.1,2.41016162]
[1724115114137,0.68770851,2661.6,2661.1,2.41016162]
[1724115114490,4.44484851,2661.6,2661.1,2.41016162]
[1724115114772,3.0,2661.5,2661.1,2.41016162]
[1724115114930,0.36877085,2661.4,2661.1,2.3258]
[1724115115131,0.68770851,2661.6,2661.2,0.08042776]
[1724115115526,0.68770851,2661.6,2661.1,2.3258]
[1724115115794,3.064,2661.5,2661.1,2.3258]
[1724115115954,3.0,2661.4,2661.2,0.08042776]
[1724115116158,0.6119965,2661.3,2661.2,0.08042776]
[1724115116360,0.6119965,2661.3,2661.1,2.3258]
[1724115116561,0.6119965,2661.3,2661.2,0.08042776]
[1724115116946,0.6119965,2661.3,2661.1,2.3258]
[1724115117353,0.6119965,2661.3,2661.2,0.08042776]
[1724115117770,0.6119965,2661.3,2661.1,2.3258]
[1724115117958,0.36119965,2661.2,2661.1,2.3258]
[1724115118630,3.4811647,2661.2,2659.7,7.38]
[1724115118926,6.82262,2660.6,2659.8,2.4639]
[1724115119072,0.682262,2660.5,2659.8,2.4639]
[1724115119400,3.682262,2660.5,2659.8,2.4639]
[1724115119768,0.05596505,2660.4,2659.8,2.4639]
[1724115119968,3.682262,2660.5,2659.8,2.4639]
[1724115120162,0.05596505,2660.4,2659.8,2.4639]
[1724115120370,1.48791976,2660.4,2659.8,2.4639]
[1724115120588,1.43195471,2660.4,2659.8,2.4639]
[1724115121001,0.36119965,2661.2,2659.8,2.4639]
[1724115121177,7.51505,2661.4,2660.0,2.3731]
[1724115121378,3.75752,2661.4,2660.1,2.45488486]
[1724115121579,3.75772,2661.2,2660.1,2.37971304]
[1724115121892,0.375772,2661.1,2660.1,2.37971304]
[1724115122212,3.75835,2660.8,2660.1,2.37971304]
[1724115122360,3.064,2660.6,2660.1,2.37971304]
[1724115122566,3.064,2660.6,2660.1,2.3038]
[1724115122869,3.0,2660.5,2660.1,2.3038]
[1724115123411,3.0,2660.8,2660.2,0.0757619]
[1724115123570,3.0,2660.8,2660.1,2.3038]
[1724115123571,3.75864,2660.6,2660.1,2.3038]
[1724115123768,3.05596505,2660.5,2660.1,2.3038]
[1724115123966,0.68146051,2660.4,2660.1,2.3038]
[1724115125061,3.55,2660.7,2660.1,2.3038]
[1724115125278,0.55,2660.7,2660.1,2.3038]
[1724115125479,4.30842,2660.7,2660.1,2.3038]
[1724115125686,3.0,2660.6,2660.1,2.3038]
[1724115125900,0.730842,2660.5,2660.1,2.3038]
[1724115126666,0.55,2660.7,2660.1,2.3038]
[1724115127080,4.30842,2660.7,2660.1,2.3038]
[1724115127275,3.0,2660.6,2660.1,2.3038]
[1724115128610,0.05596505,2660.5,2660.1,2.3038]
[1724115129666,3.81467505,2660.5,2660.1,2.3038]
[1724115129869,3.98786751,2660.4,2660.1,2.3038]
[1724115130065,4.04383256,2660.4,2660.1,2.3038]
[1724115130272,3.11996505,2660.3,2659.1,2.3642]
[1724115130607,10.58302,2660.0,2659.1,2.3642]
[1724115130813,0.05596505,2659.9,2659.1,2.3642]
[1724115131014,3.05596505,2659.9,2659.1,2.3642]
[1724115135696,3.0,2659.9,2659.1,2.3642]
[1724115135930,3.064,2660.3,2659.3,2.442]
[1724115135931,3.75933,2660.1,2659.3,2.442]
[1724115136168,3.0,2660.0,2659.3,2.442]
[1724115136354,3.0,2660.2,2659.4,2.51638889]
[1724115137433,6.75919,2660.2,2659.4,2.51638889]
[1724115137731,1.358224,2660.1,2659.4,2.51638889]
[1724115139128,3.0,2660.2,2659.4,2.51638889]
[1724115142305,6.82265,2660.6,2659.4,2.51638889]
[1724115143462,3.064,2660.6,2659.4,2.51638889]
[1724115143664,3.0,2660.5,2659.4,2.51638889]
[1724115143876,3.0,2660.5,2659.4,2.442]
[1724115144126,4.358121,2660.5,2659.6,2.3638]
[1724115144610,4.358121,2660.5,2659.7,2.43814486]
[1724115144970,8.116891,2660.5,2659.7,2.43814486]
[1724115145592,3.75892,2660.4,2659.7,2.43814486]
[1724115145811,6.064,2660.3,2659.7,2.43814486]
[1724115146009,7.4821041,2660.3,2659.7,2.43814486]
[1724115146313,4.4181041,2660.3,2659.7,2.43814486]
[1724115146619,3.0,2660.2,2659.7,2.43814486]
[1724115146776,3.0,2660.5,2659.7,2.43814486]
[1724115148470,6.75871,2660.5,2659.7,2.43814486]
[1724115150779,3.0,2660.5,2659.7,2.43814486]
[1724115150974,3.6064,2660.5,2659.7,2.43814486]
[1724115152411,7.42118505,2660.5,2659.7,2.43814486]
[1724115152597,3.75897,2660.3,2659.7,2.43814486]
[1724115152797,3.0,2660.2,2659.7,2.43814486]
[1724115153871,3.0,2660.4,2659.7,2.43814486]
[1724115154099,1.112404,2660.3,2659.7,2.43814486]
[1724115155235,4.871404,2660.3,2659.7,2.43814486]
[1724115155529,3.0,2660.2,2659.7,2.43814486]
[1724115155678,4.112404,2660.3,2659.7,2.43814486]
[1724115155884,1.112404,2660.3,2659.7,2.43814486]
[1724115156124,0.4112404,2660.2,2659.7,2.43814486]
[1724115156923,3.064,2660.0,2659.7,2.43814486]
[1724115157116,3.0,2659.9,2659.7,2.43814486]
[1724115157557,3.0,2659.9,2659.7,2.3638]
[1724115158423,0.4112404,2660.2,2659.7,2.3638]
[1724115158758,6.75899,2660.3,2659.9,2.29]
[1724115158759,3.0,2660.3,2659.9,2.29]
[1724115159257,3.064,2660.7,2659.9,2.29]
[1724115159417,3.75855,2660.6,2659.9,2.29]
[1724115159621,7.5172,2660.6,2659.9,2.29]
[1724115159834,1.05812,2660.5,2660.0,2.50444927]
[1724115160283,4.81681,2660.5,2660.0,2.50444927]
[1724115160449,3.0,2660.4,2660.0,2.50444927]
[1724115161047,7.81686,2660.5,2660.0,2.50444927]
[1724115162565,7.81686,2660.5,2660.0,2.4303]
[1724115162869,0.781686,2660.4,2660.0,2.4303]
[1724115163084,3.781686,2660.4,2660.0,2.4303]
[1724115163268,0.781686,2660.4,2660.0,2.4303]
[1724115163507,3.781686,2660.4,2660.0,2.4303]
[1724115165131,3.0,2660.3,2660.0,2.4303]
[1724115165347,0.781686,2660.4,2660.0,2.4303]
[1724115166295,0.8598536,2660.3,2660.0,2.4303]
[1724115166778,3.8598536,2660.3,2660.0,2.4303]
[1724115170667,3.0,2660.5,2660.0,2.4303]
[1724115171507,3.7582,2660.9,2660.0,2.4303]
[1724115171508,3.0,2660.6,2660.0,2.4303]
[1724115171674,3.7582,2660.9,2660.2,2.4551]
[1724115171675,3.0,2660.8,2660.2,2.4551]
[1724115172226,3.064,2661.0,2660.2,2.4551]
[1724115172421,3.064,2661.0,2660.2,2.70061]
[1724115172641,2.79883889,2661.5,2660.2,2.70061]
[1724115172642,0.32303889,2661.5,2660.4,2.4551]
[1724115172768,0.58950905,2661.9,2660.4,2.4551]
[1724115172970,0.58950905,2661.9,2660.6,2.2812]
[1724115173171,6.82066,2662.0,2660.6,2.2812]
[1724115173408,1.09703756,2661.9,2660.8,2.2812]
[1724115174408,4.09703756,2661.9,2660.8,2.2812]
[1724115180016,7.85376756,2661.9,2660.8,2.2812]
[1724115181316,4.09703756,2661.9,2660.8,2.2812]
[1724115181515,4.09703756,2661.9,2661.0,2.4452]
[1724115182077,3.0,2661.9,2661.1,2.35564676]
[1724115182290,3.0,2662.1,2661.2,0.07285754]
[1724115182490,3.0,2662.1,2661.3,2.2805]
[1724115182696,3.0,2662.1,2661.4,2.2805]
[1724115182996,3.75672,2661.9,2661.4,2.2805]
[1724115183195,3.05596505,2661.8,2661.4,2.2805]
[1724115183625,2.85596505,2661.8,2661.4,2.2805]
[1724115185802,3.0,2661.9,2661.4,2.2805]
[1724115186344,4.08793276,2661.9,2661.4,2.2805]
[1724115187535,3.0,2661.8,2661.4,2.2805]
[1724115187732,1.08793276,2661.9,2661.4,2.2805]
[1724115188139,3.0,2662.0,2661.4,2.2805]
[1724115189696,6.75659,2662.0,2661.4,2.2805]
[1724115192108,6.93855749,2662.0,2661.4,2.2805]
[1724115194819,6.75659,2662.0,2661.4,2.2805]
[1724115195046,1.08793276,2661.9,2661.4,2.2805]
[1724115195265,4.15193276,2661.9,2661.5,0.07218003]
[1724115195552,3.0,2661.8,2661.5,0.07218003]
[1724115200458,3.0,2661.8,2661.6,2.4835]
[1724115200657,3.0,2662.1,2661.6,2.4835]
[1724115200861,3.0,2662.1,2661.8,2.3597]
[1724115203827,3.0,2662.1,2661.8,2.3588197]
[1724115204760,7.738475,2662.1,2661.8,2.3588197]
[1724115204967,3.982015,2662.1,2661.8,2.3588197]
[1724115205153,3.0,2662.1,2661.8,2.3588197]
[1724115205354,3.43030756,2662.5,2661.8,2.3588197]
[1724115205669,3.75608,2662.4,2661.9,0.0717926]
[1724115205858,3.75608,2662.4,2661.8,2.3588197]
[1724115205859,3.75615,2662.3,2661.8,2.3588197]
[1724115206034,3.75615,2662.3,2662.0,0.07166938]
[1724115206235,3.75615,2662.3,2661.9,0.07171459]
[1724115206464,3.75615,2662.3,2662.1,0.07162416]
[1724115206645,6.75629,2662.2,2662.0,0.07166938]
[1724115206835,3.75651,2662.1,2661.8,2.3588197]
[1724115207053,3.0,2662.0,2661.8,2.3588197]
[1724115207569,3.75688,2661.8,2661.5,2.311]
[1724115207768,3.75688,2661.8,2660.7,12.26]
[1724115207769,6.82113,2661.6,2660.9,2.311]
[1724115207931,3.064,2661.6,2660.9,2.311]
[1724115208135,3.0,2661.5,2660.9,2.311]
[1724115208358,3.064,2661.9,2660.9,2.311]
[1724115208359,3.0,2661.8,2660.9,2.311]
[1724115208594,1.271,2661.5,2660.9,2.311]
[1724115208739,1.271,2661.5,2661.0,2.5718]
[1724115209070,3.0,2661.8,2661.0,2.5718]
[1724115209271,1.271,2661.6,2661.1,2.41294485]
[1724115209768,1.271,2661.6,2661.1,2.3378]
[1724115210632,6.049,2662.2,2661.1,2.3378]
[1724115210831,6.049,2662.2,2661.3,2.2933]
[1724115211476,3.7569,2661.8,2661.3,2.2933]
[1724115211638,3.0,2661.7,2661.4,0.06967129]
[1724115211839,6.75699,2661.7,2661.4,0.06967129]
[1724115212145,3.049,2661.6,2661.4,0.06967129]
[1724115212354,3.0,2661.5,2661.4,0.06967129]
[1724115212888,3.0,2661.8,2660.7,2.3704]
[1724115213083,3.0,2661.8,2660.9,2.3704]
[1724115213244,3.75702,2661.7,2660.9,2.3704]
[1724115213586,3.0,2661.6,2661.1,2.3704]
[1724115214082,3.0,2661.6,2661.2,0.06979848]
[1724115214465,3.0,2661.7,2661.2,0.06979848]
[1724115215593,3.0,2661.7,2661.3,2.4434]
[1724115216459,3.0,2661.9,2661.3,2.4434]
[1724115216650,3.0,2661.9,2661.4,0.069708]
[1724115216852,4.37470129,2661.9,2661.3,2.4434]
[1724115217253,3.0,2661.9,2661.3,2.4434]
[1724115217787,3.0,2662.1,2661.3,2.4434]
[1724115218190,3.0,2662.1,2661.5,2.4444]
[1724115218682,7.12265756,2662.2,2661.5,2.4444]
[1724115218846,7.12265756,2662.2,2661.6,0.06958543]
[1724115218847,8.21541632,2662.2,2661.6,0.06958543]
[1724115219049,3.75644,2662.1,2661.5,2.4444]
[1724115219248,3.0,2662.0,2661.5,2.4444]
[1724115219487,3.36630756,2662.2,2661.5,2.4444]
[1724115219659,3.0,2662.2,2661.5,2.4444]
[1724115221394,3.0,2662.3,2661.5,2.4444]
[1724115222093,3.0,2662.3,2661.7,2.2941]
[1724115222403,7.1543009,2662.7,2661.8,2.36359498]
[1724115222404,3.0,2662.6,2661.8,2.36359498]
[1724115223761,6.75577,2662.6,2661.8,2.2941]
[1724115224112,3.0,2662.6,2661.8,2.2941]
[1724115224314,3.0,2662.6,2662.0,2.3717]
[1724115224525,7.1543009,2662.7,2662.0,2.3717]
[1724115224526,0.3496409,2662.7,2662.0,2.3717]
[1724115224730,3.049,2663.0,2662.1,2.44682117]
[1724115225019,4.1043809,2663.3,2662.1,2.44105934]
[1724115225020,3.3986409,2663.3,2662.1,2.44105934]
[1724115225158,3.3986409,2663.3,2662.3,2.3717]
[1724115225595,0.3496409,2663.3,2662.4,2.44680952]
[1724115225779,0.3496409,2663.3,2662.5,2.61638095]
[1724115226168,0.3496409,2663.3,2662.6,0.06913333]
[1724115226408,0.3496409,2663.3,2662.7,2.3717]
[1724115227101,3.0,2663.3,2662.9,2.3717]
[1724115227514,3.0,2663.3,2663.0,0.06895259]
[1724115227938,0.4796172,2663.6,2663.1,2.2764]
[1724115228075,0.1299763,2663.6,2663.1,2.2764]
[1724115228276,0.1299763,2663.6,2663.3,2.3426]
[1724115228734,0.1299763,2663.6,2663.4,0.06778103]
[1724115229224,0.1299763,2663.6,2663.5,2.326]
[1724115229438,0.1299763,2663.6,2663.4,0.06778103]
[1724115229586,0.1299763,2663.6,2663.5,0.06757541]
[1724115229785,0.1299763,2663.6,2663.3,2.326]
[1724115230032,0.1299763,2663.6,2663.5,0.06757541]
[1724115230219,0.1299763,2663.6,2663.3,2.326]
[1724115230522,0.1299763,2663.6,2663.5,0.06753415]
[1724115230681,0.1299763,2663.6,2663.3,2.326]
[1724115231083,0.1299763,2663.6,2663.4,0.06757931]
[1724115231369,0.1299763,2663.6,2663.3,2.326]
[1724115231579,0.1299763,2663.6,2663.5,0.06753415]
[1724115231747,0.1299763,2663.6,2663.4,0.06757931]
[1724115231944,0.1299763,2663.6,2663.3,2.326]
[1724115232144,1.12329193,2663.6,2663.3,2.326]
[1724115232349,1.12329193,2663.6,2663.4,0.06757931]
[1724115232551,1.12329193,2663.6,2663.3,2.326]
[1724115232852,1.12329193,2663.6,2663.5,0.06753415]
[1724115233051,1.12329193,2663.6,2663.4,0.06757931]
[1724115233253,1.12329193,2663.6,2663.3,2.326]
[1724115233581,4.87770193,2663.6,2663.4,0.06757931]
[1724115233741,4.16318819,2663.5,2663.4,0.06757931]
[1724115234098,4.21218819,2663.5,2663.3,2.326]
[1724115234236,3.0,2663.4,2663.0,2.4549]
[1724115234443,3.0,2663.4,2662.7,9.8349]
[1724115234444,3.049,2663.0,2662.7,9.8349]
[1724115234675,3.0,2662.9,2662.7,2.4549]
[1724115236499,6.75538,2662.9,2662.7,2.4549]
[1724115236657,6.75538,2662.9,2662.4,2.4595]
[1724115236856,3.049,2662.7,2662.4,2.4595]
[1724115237072,3.0,2662.6,2662.4,2.4595]
[1724115238486,3.0,2662.6,2662.4,2.70545]
[1724115238684,3.0,2662.9,2662.4,2.70545]
[1724115238869,3.049,2663.0,2662.4,2.4595]
[1724115239079,3.0,2662.9,2662.4,2.4595]
[1724115240264,3.0,2663.2,2662.4,2.4595]
[1724115240477,3.0,2663.2,2662.5,2.64275]
[1724115240977,3.0,2663.2,2662.7,2.3302]
[1724115241395,3.0,2663.2,2662.8,0.0677724]
[1724115241594,3.0,2663.2,2662.7,2.3302]
[1724115242097,0.1299763,2663.6,2662.9,2.3318]
[1724115242411,0.1299763,2663.6,2663.1,2.3318]
[1724115242787,0.1299763,2663.6,2663.2,0.06759168]
[1724115244209,0.1299763,2663.6,2663.3,2.3546]
[1724115244382,0.1299763,2663.6,2663.3,2.42214651]
[1724115245188,0.1299763,2663.6,2663.3,2.3546]
[1724115246825,0.1299763,2663.6,2663.4,0.06750135]
[1724115247031,0.1299763,2663.6,2663.3,2.3546]
[1724115248881,0.1299763,2663.6,2663.3,2.2546]
[1724115249078,0.74787393,2663.6,2663.3,2.2546]
[1724115252601,3.049,2663.5,2663.3,2.2546]
[1724115252801,3.0,2663.4,2663.3,2.2546]
[1724115253292,2.9,2663.4,2662.6,2.2521]
[1724115253517,3.049,2663.2,2662.6,2.2521]
[1724115253714,4.019366,2663.2,2662.7,0.06735465]
[1724115254217,4.019366,2663.2,2662.8,0.0673553]
[1724115254529,3.049,2662.9,2662.6,2.2521]
[1724115255048,3.049,2662.9,2662.7,0.06740048]
[1724115255394,3.0,2662.8,2662.7,0.06740048]
[1724115256634,3.6049,2662.8,2662.7,0.06740048]
[1724115258314,3.0,2662.8,2662.7,0.06740048]
[1724115259490,3.0,2663.1,2662.8,2.4397]
[1724115260045,2.7652409,2663.8,2662.8,2.4397]
[1724115260046,3.049,2663.5,2662.8,2.4397]
[1724115260696,3.049,2663.5,2662.4,7.38]
[1724115260697,3.049,2663.5,2663.0,2.4397]
[1724115261045,3.049,2663.5,2663.1,0.06721976]
[1724115261588,3.0,2663.4,2663.1,0.06721976]
[1724115261947,3.0,2663.4,2663.1,0.31791174]
[1724115262260,0.1299763,2663.6,2663.2,2.4141]
[1724115262465,0.1299763,2663.6,2663.2,2.48135248]
[1724115262663,3.049,2663.5,2663.2,2.48135248]
[1724115263446,3.0,2663.4,2663.2,2.48135248]
[1724115263651,3.0,2663.4,2663.2,2.4141]
[1724115264478,0.1299763,2663.6,2663.2,2.4141]
[1724115264682,0.1299763,2663.6,2663.3,0.06720731]
[1724115264986,0.1299763,2663.6,2663.4,0.06716214]
[1724115265150,0.1299763,2663.6,2663.2,2.4141]
[1724115265353,0.1299763,2663.6,2663.3,0.06720731]
[1724115265563,0.1299763,2663.6,2663.2,2.4141]
[1724115265759,0.1299763,2663.6,2663.3,0.06720731]
[1724115265993,0.1299763,2663.6,2663.2,2.4141]
[1724115266151,0.1299763,2663.6,2663.4,0.06716214]
[1724115266356,0.1299763,2663.6,2662.8,7.38]
[1724115266357,0.1299763,2663.6,2663.5,2.3958]
[1724115266577,0.1299763,2663.6,2663.5,2.46291698]
[1724115269558,0.74787393,2663.6,2663.5,0.06711698]
[1724115269770,0.74787393,2663.6,2663.3,2.3848]
[1724115270003,0.74787393,2663.6,2663.5,0.06711698]
[1724115270204,0.74787393,2663.6,2663.3,2.3848]
[1724115270205,4.50218393,2663.6,2663.3,2.3848]
[1724115270388,3.0,2663.5,2663.3,2.3848]
[1724115270892,6.049,2663.5,2663.3,2.3848]
[1724115271057,6.049,2663.5,2663.4,0.06716214]
[1724115271419,7.10411839,2663.5,2663.3,2.3848]
[1724115271714,6.049,2663.5,2663.3,2.3848]
[1724115272010,3.75476,2663.3,2662.9,2.2648]
[1724115272161,6.049,2663.2,2662.9,2.2648]
[1724115273068,3.75524,2663.0,2661.8,2.4936]
[1724115273270,3.0,2662.9,2661.9,2.74296]
[1724115273588,6.049,2662.9,2661.9,2.74296]
[1724115273792,9.80439,2662.9,2661.9,2.74296]
[1724115274008,3.0,2662.9,2661.9,2.74296]
[1724115274195,9.8042,2663.0,2662.1,2.4323]
[1724115275582,13.55946,2663.0,2662.1,2.4323]
[1724115275788,9.8042,2663.0,2662.1,2.4323]
[1724115277460,3.75535,2662.9,2662.1,2.4323]
[1724115277794,3.0,2662.8,2662.1,2.4323]
[1724115277997,3.049,2662.7,2662.1,2.4323]
[1724115278213,3.049,2662.4,2662.1,2.4323]
[1724115278560,3.0,2662.3,2662.1,2.4323]
[1724115279184,6.75581,2662.6,2662.1,2.4323]
[1724115279385,8.111858,2662.6,2662.1,2.4323]
[1724115279596,4.356048,2662.6,2662.1,2.4323]
[1724115280072,3.0,2662.6,2662.1,2.4323]
[1724115282020,3.0,2662.9,2662.1,2.4323]
[1724115287999,6.75531,2662.9,2662.1,2.4323]
[1724115288209,3.75566,2662.7,2662.1,2.4323]
[1724115288396,3.75587,2662.5,2662.1,2.4323]
[1724115288737,3.675587,2662.4,2662.1,2.4323]
[1724115289039,3.0,2662.4,2662.1,2.4323]
[1724115289336,3.0,2662.6,2662.1,2.4323]
[1724115290632,6.75573,2662.6,2662.1,2.4323]
[1724115290811,3.0,2662.6,2662.1,2.4323]
[1724115299629,3.0,2662.5,2662.1,2.4323]
[1724115299849,3.0,2663.0,2662.3,2.3672]
[1724115300264,3.049,2663.1,2662.3,2.3672]
[1724115300578,3.049,2663.3,2662.3,2.3672]
[1724115300793,3.049,2663.0,2662.3,2.3672]
[1724115301087,7.10914,2663.0,2662.3,2.3672]
[1724115301286,3.3539,2663.0,2662.3,2.3672]
[1724115301447,7.10906,2663.0,2662.3,2.3672]
[1724115301651,3.0,2662.9,2662.3,2.3672]
[1724115303046,3.049,2662.7,2662.3,2.3672]
[1724115303254,3.049,2662.4,2662.3,2.3672]
[1724115303474,6.8051,2662.4,2660.8,2.4284]
[1724115303687,3.049,2662.1,2660.8,2.4284]
[1724115304095,3.0,2662.0,2660.8,2.4284]
[1724115304238,3.0,2662.0,2660.9,2.67124]
[1724115304439,3.0,2662.0,2660.9,2.4284]
[1724115304634,6.75665,2662.0,2660.9,2.4284]
[1724115304872,3.049,2661.8,2660.9,2.4284]
[1724115305072,3.0,2661.7,2660.9,2.4284]
[1724115305279,3.0,2661.7,2660.2,0.76767802]
[1724115305280,3.0,2661.7,2661.0,2.67124]
[1724115305574,3.0,2661.9,2661.0,2.67124]
[1724115306234,3.0,2662.0,2661.0,2.67124]
[1724115306683,7.18554401,2662.4,2661.0,2.67124]
[1724115306684,3.0,2662.3,2661.0,2.67124]
[1724115306885,4.0185544,2662.3,2661.2,2.2719]
[1724115307084,7.7748144,2662.3,2661.2,2.2719]
[1724115307645,4.0185544,2662.3,2661.2,2.2719]
[1724115308041,7.7748044,2662.3,2661.2,2.2719]
[1724115308285,1.49603484,2662.2,2661.2,2.5258024]
[1724115308790,5.25233484,2662.2,2661.2,2.5258024]
[1724115308984,6.049,2662.1,2661.2,2.5258024]
[1724115310550,3.75665,2662.0,2661.2,2.2719]
[1724115310774,3.0,2661.9,2661.2,2.2719]
[1724115311384,3.0,2661.9,2661.4,2.4109]
[1724115311587,3.049,2662.1,2661.4,2.4109]
[1724115311588,3.0,2662.0,2661.4,2.4109]
[1724115311790,3.0,2662.0,2661.6,2.4109]
[1724115312012,2.5071763,2663.6,2661.8,2.4109]
[1724115312328,2.5071763,2663.6,2661.7,0.32270147]
[1724115312329,7.50998,2663.2,2662.0,2.4109]
[1724115312597,6.80374,2663.3,2662.1,2.48601301]
[1724115312820,6.80374,2663.3,2662.1,2.47540573]
[1724115313152,7.484114,2663.3,2662.3,2.4109]
[1724115313407,11.238984,2663.3,2662.3,2.4109]
[1724115313558,7.484114,2663.3,2662.5,2.2887]
[1724115313752,3.0,2663.2,2662.5,2.2887]
[1724115314073,3.0,2663.2,2662.4,0.13927263]
[1724115314074,3.0,2663.2,2662.7,2.2887]
[1724115314270,3.049,2663.0,2662.7,2.2887]
[1724115314472,4.0484114,2663.2,2662.7,2.2887]
[1724115314671,3.0,2662.9,2662.7,2.2887]
[1724115314872,3.0,2663.2,2662.7,2.2887]
[1724115315107,3.6729374,2663.2,2662.7,2.2887]
[1724115316017,3.049,2663.0,2662.7,2.2887]
[1724115316191,3.0,2662.9,2662.7,2.2887]
[1724115317619,3.0,2662.9,2662.0,2.4519]
[1724115317980,3.049,2662.5,2662.1,0.06429511]
[1724115318133,3.0,2662.4,2662.2,2.4922]
[1724115318538,0.730536,2662.7,2662.2,2.4922]
[1724115318988,3.730536,2662.7,2662.2,2.4922]
[1724115319789,3.0,2662.7,2662.2,2.4922]
[1724115320231,3.75448,2663.5,2662.2,2.4922]
[1724115320450,3.75494,2663.2,2662.2,2.4922]
[1724115320599,3.049,2663.0,2662.2,2.4922]
[1724115320927,3.049,2663.0,2662.3,2.51828497]
[1724115321091,6.80383,2663.3,2662.3,2.77011347]
[1724115321292,3.049,2663.3,2662.3,2.4543]
[1724115321492,3.0,2663.2,2662.3,2.4543]
[1724115322438,3.1789763,2663.6,2662.4,2.3579075]
[1724115322788,3.75449,2663.5,2662.4,2.3579075]
[1724115323032,0.69334663,2663.4,2662.4,2.59369825]
[1724115323329,3.049,2663.3,2662.4,2.59369825]
[1724115323912,3.0,2663.2,2662.4,2.59369825]
[1724115324633,3.0,2663.2,2662.4,2.52979075]
[1724115325225,3.0,2663.2,2662.5,2.3597623]
[1724115325406,3.40852483,2663.2,2662.5,2.2959]
[1724115326331,3.40852483,2663.2,2662.6,0.0638171]
[1724115327401,3.40852483,2663.2,2662.7,2.2959]
[1724115327801,3.40852483,2663.2,2662.8,0.06372673]
[1724115328038,0.64575248,2663.1,2662.8,0.06372673]
[1724115328240,0.64575248,2663.1,2662.7,2.2959]
[1724115328598,0.64575248,2663.1,2662.8,0.06372673]
[1724115328935,0.64575248,2663.1,2662.7,2.2959]
[1724115329103,0.64575248,2663.1,2662.9,0.06368154]
[1724115329299,0.40542773,2663.0,2662.7,2.2959]
[1724115330305,0.64575248,2663.1,2662.7,2.2959]
[1724115331035,0.64575248,2663.1,2662.8,0.06350703]
[1724115331335,0.64575248,2663.1,2662.7,2.2959]
[1724115331557,3.0,2663.2,2663.0,2.2959]
[1724115331705,6.1789763,2663.6,2663.0,2.2959]